{"text_format":"3","workbook":"xlsx","n_sheets":1,"sheets":["Sheet1"],"read":"whole","date_system":"1900"}

{"sheet":"Sheet1","index":0,"n_rows":99,"n_cols":8,"rows_kept":99,"merged":[[20,0,23,0],[25,0,28,0],[29,0,32,0],[59,1,59,2],[60,0,62,0],[65,0,67,0],[74,0,78,0],[96,0,96,6],[98,0,98,7]]}
["Предмер и предрачун - 3. Водовод и канализација"]
["Назив објекта: Музеј кошарке, По+П+1, к.п.бр.454/2 К.О. Чачак"]
["Инвеститор: Град Чачак"]
[]
[]
[]
[]
["Све цене су изражене у динарима Републике Србије - РСД, без обрачунатог ПДВ-а."]
["Ред. бр.","Опис позиције","Јед. мере","Колич.","Рач.опер.","Јед.цена","Рач.опер.","Укупно  "]
[]
[]
["3. ВОДОВОД И КАНАЛИЗАЦИЈА"]
[null,"СПОЉНЕ ХИДРОТЕХНИЧКЕ ИНСТАЛАЦИЈЕ - ПАРТЕР"]
[null,"ВОДОВОД И КАНАЛИЗАЦИЈА"]
[1,"Израда прикључка на градску водоводну мрежу.                             Обрачун по комаду.","комада",1,"x",null,"=",{"$f":"D15*F15","v":{"v":0,"d":"0.00"}}]
[2,"Машински ископ земљишта III и IV категорије за израду рова ширине 0.90м. \nОбрачун по м³.","м³",28,"x",null,"=",{"v":0,"d":"0.00"}]
[3,"Набавка транспорт и уграђивање песка који служи као тампон слој испод и око цеви.\nОбрачун по м³.","м³",5,"x",null,"=",{"v":0,"d":"0.00"}]
[4,"Затрпавање рова шљунком са набијањем у слојевима од 30цм на месту где цев пролази преко пута.\nОбрачун по м³.","м³",23,"x",null,"=",{"v":0,"d":"0.00"}]
[5,"Транспорт вишка материјала од ископа до места за депонију на удаљености до 4км.                          Обрачун по м³.","м³",6,"x",null,"=",{"v":0,"d":"0.00"}]
[6,"Бетонирање анкер блокова бетоном МБ20.\nОбрачун по м³.","м³",28,"x",null,"=",{"v":0,"d":"0.00"}]
[7,"Набавка транспорт и монтажа ТПЕ цеви за радни притисак од 10 бари.                                     Обрачун по м'."]
[null,"ø25мм","м'",55,"x",null,"=",{"$f":"D22*F22","v":{"v":0,"d":"0.00"}}]
[null,"ø65мм","м'",30,"x",null,"=",{"$f":"D23*F23","v":{"v":0,"d":"0.00"}}]
[null,"ø80мм","м'",25,"x",null,"=",{"$f":"D24*F24","v":{"v":0,"d":"0.00"}}]
[8,"Набавка транспорт и монтажа ливеногвоздених\nфазонских комада. \nОбрачун је по комаду.","комада",22,"x",null,"=",{"$f":"D25*F25","v":{"v":0,"d":"0.00"}}]
[9,"Набавка транспорт и монтажа :\n"]
[null,"О.З.ф.25мм","комада",2,"x",null,"=",{"$f":"D27*F27","v":{"v":0,"d":"0.00"}}]
[null,"О.З.ф.25мм","комада",1,"x",null,"=",{"$f":"D28*F28","v":{"v":0,"d":"0.00"}}]
[null,"Обрачун је по комаду."]
[10,"Набавка и уградња водомера домаће производње.\n"]
[null,"ND 25мм","комада",1,"x",null,"=",{"$f":"D31*F31","v":{"v":0,"d":"0.00"}}]
[null,"ND 80мм","комада",1,"x",null,"=",{"$f":"D32*F32","v":{"v":0,"d":"0.00"}}]
[null,"Обрачун је по комаду."]
[11,"Набавка транспорт и монтажа подземног хидранта без опреме са осигурањем хидрантске главе ND80мм.                                             Обрачун је по комаду.                                           ","комада",1,"x",null,"=",{"$f":"D34*F34","v":{"v":0,"d":"0.00"}}]
[12,"Испитивање цевовода под притиском према датим смерницама за испитивање цевовода.                                          Обрачун је по м'.","м'",110,"x",null,"=",{"$f":"D35*F35","v":{"v":0,"d":"0.00"}}]
[13,"Дезинфекција цевовода према прописима завода за заштиту здравља и санитарне инспекције.   Обрачун је по м'.","м'",110,"x",null,"=",{"$f":"D36*F36","v":{"v":0,"d":"0.00"}}]
[]
[null,"ШАХТОВИ"]
[1,"Машински и ручни ископ земљишта III и IV категорије за израду водомерног шахта. Обрачун је по м³.","м³",2,"x",null,"=",{"$f":"D39*F39","v":{"v":0,"d":"0.00"}}]
[2,"Набавка транспорт и уграђивање шљунка који служи као тампон слој дебљине д=10цм.                       Обрачун је по м³.","м³",0.4,"x",null,"=",{"v":0,"d":"0.00"}]
[3,"Транспорт вишка материјала од ископа до места за депонију на удаљености до 4км.                         Обрачун је по м³.","м³",1,"x",null,"=",{"v":0,"d":"0.00"}]
[4,"Бетонирање доње плоче зидова и горње плоче шахта бетоном МБ20. \nОбрачун је по м³ заједно са оплатом.","м³",4,"x",null,"=",{"v":0,"d":"0.00"}]
[5,"Набавка транспорт исправљање савијање и уграђивање бетонског гвожђа.\nОбрачун је по кг.","кг",65,"x",null,"=",{"v":0,"d":"0.00"}]
[6,"Набавка уграђивање и заштита пењалица од корозије.\nОбрачун је по комаду.","комада",3,"x",null,"=",{"v":0,"d":"0.00"}]
[7,"Набавка и постављање ливено-гвозденог поклопца заједно са рамом за лако оптерећење.\nОбрачун је по комаду.","комада",1,"x",null,"=",{"v":0,"d":"0.00"}]
[8,"Израда прикључка на градску канализациону\nмрежу.\nОбрачун је по комаду.","комада",1,"x",null,"=",{"v":0,"d":"0.00"}]
[9,"Машински ископ земљишта III и IV категорије за израду рова ширине 0.90м. \nОбрачун је по м³.","м³",4.3,"x",null,"=",{"v":0,"d":"0.00"}]
[10,"Набавка транспорт и уграђивање песка који служи као тампон слој испод и око цеви. \nОбрачун је по м³.","м³",0.8,"x",null,"=",{"v":0,"d":"0.00"}]
[11,"Затрпавање рова шљунком са набијањем у\nслојевима од 30цм на месту где цев пролази преко пута.\nОбрачун је по м³.","м³",1.2,"x",null,"=",{"v":0,"d":"0.00"}]
[12,"Транспорт вишка материјала од ископа до места за депонију на удаљености до 4км.                         Обрачун је по м³.","м³",2.3,"x",null,"=",{"v":0,"d":"0.00"}]
[13,"Разупирање рова до пројектоване дубине и ширине према пројекту са сувом и здравом грађом. Разупирање вршити по целој дубини рова а на местима где је потребно. За сигурност при раду и обим подграђивања искључиво је одговоран извођач радова.\nОбрачун је по м² разупрте површине.","м²",12,"x",null,"=",{"v":0,"d":"0.00"}]
[14,"Набавка транспорт и монтажа ПВЦ канализационих цеви ø 160мм.\nОбрачун је по м'.","м'",6,"x",null,"=",{"v":0,"d":"0.00"}]
[15,"Испитивање цевовода на\nводонепропустљивост према упутству надзорног органа.\nОбрачун је по м'.","м'",5,"x",null,"=",{"v":0,"d":"0.00"}]
[16,"Обележавање пројектоване трасе фекалне\nканализације на терену. \nОбрачун је по м'.","м'",5,"x",null,"=",{"v":0,"d":"0.00"}]
[]
[null,"ДРЕНАЖНИ СИСТЕМ"]
[1,"Набавка и монтажа ПВЦ дренажних цеви од тврдог поливинилхлорида, пречника 125 мм, у рову заједно са фасонским комадима и материјалом за спајање. Поставити само исправне цеви и фасонске комаде, који имају атесте. Ревизиони комади морају бити правилно дихтовани са поклопцима.                                Обрачун по м’ цеви.\n\n\n\n\n\n \n\n\n\n\n\n\n\n\n\n\n\n\n\n\n\n\n\n\n\n\n\n\n\n\n\n\n\n\n","м'",40.05,"x",null,"=",{"$f":"D57*F57","v":{"v":0,"d":"0.00"}}]
[2,"Набавка и постављање геотекстила за дренажни систем.\nОбрачун комплетно.\n\n\n\n\n\n \n\n\n\n\n\n\n\n\n\n\n\n\n\n\n\n\n\n\n\n\n\n\n\n\n\n\n\n\n","комплетно",1,"x",null,"=",{"$f":"D58*F58","v":{"v":0,"d":"0.00"}}]
[]
[null,"ХИДРОТЕХНИЧКЕ ИНСТАЛАЦИЈЕ - ОБЈЕКАТ"]
[1,"Набавка и уградња ПВЦ водоводних цеви и фазонских комада за радни притисак 10 бара.                                                 Обрачун по м'.                                                                        "]
[null,"цеви пречника 20мм","м'",38,"x",null,"=",{"$f":"D62*F62","v":{"v":0,"d":"0.00"}}]
[null,"цеви пречника 25мм","м'",5,"x",null,"=",{"$f":"D63*F63","v":{"v":0,"d":"0.00"}}]
[2,"Заштита водоводне цеви при пролазу кроз зидове и таванице, челичном цеви за два пречника већим од спољног пречника цеви, са заптивањем оба краја ужетом у битумену или трајно пластичним китом.\nОбрачун је по комаду.","комада",3,"x",null,"=",{"$f":"D64*F64","v":{"v":0,"d":"0.00"}}]
[3,"Топлотна изолација водоводних цеви са полиетиленском пеном.\nОбрачун је по м'.","м'",43,"x",null,"=",{"$f":"D65*F65","v":{"v":0,"d":"0.00"}}]
[4,"Набавка и уграђивање пропустних вентила са\nточком или капом.\nОбрачун је по комаду."]
[null,"Пречника 20мм","комада",4,"x",null,"=",{"$f":"D67*F67","v":{"v":0,"d":"0.00"}}]
[null,"Пречника 25мм","комада",2,"x",null,"=",{"v":0,"d":"0.00"}]
[5,"Набавка и уграђивање испустних вентила пречника 25мм.\nОбрачун је по комаду.","комада",2,"x",null,"=",{"v":0,"d":"0.00"}]
[6,"Испитивање, испирање и дезинфекција водоводне мреже, после завршене монтаже цеви.\nОбрачун је по м' цеви.","м'",43,"x",null,"=",{"$f":"D70*F70","v":{"v":0,"d":"0.00"}}]
[7,"Набавка и постављање обујмица.\nОбрачун је по комаду.","комада",28,"x",null,"=",{"v":0,"d":"0.00"}]
[8,"Набавка и постављање унутрашњих зидних\nпожарних хидраната у металном ормару са стакленим вратима и комплетном опремом.\nОбрачун је по комаду.","комада",1,"x",null,"=",{"v":0,"d":"0.00"}]
[]
[null,"ФЕКАЛНА КАНАЛИЗАЦИЈА - ОБЈЕКАТ"]
[1,"Набавка и уграђивање К.К. - ПВЦ цеви и спојних елемената за кућну канализацију.\nОбрачун је по м'."]
[null,"Цеви пречника 50мм","м'",13,"x",null,"=",{"$f":"D76*F76","v":{"v":0,"d":"0.00"}}]
[null,"Цеви пречника 75мм","м'",7,"x",null,"=",{"$f":"D77*F77","v":{"v":0,"d":"0.00"}}]
[null,"Цеви пречника 110мм","м'",31,"x",null,"=",{"$f":"D78*F78","v":{"v":0,"d":"0.00"}}]
[null,"Цеви пречника 160мм","м'",4,"x",null,"=",{"$f":"D79*F79","v":{"v":0,"d":"0.00"}}]
[2,"Набавка и уграђивање вентилационих глава\nод поцинкованог лима д=0.55мм, дужине 1.50м.\nОбрачун је по комаду\nпречника 150мм.","комада",1,"X",null,"=",{"$f":"D80*F80","v":{"v":0,"d":"0.00"}}]
[3,"Набавка и уграђивање ливено-гвоздених подних сливника са ростфрајном решетком.\nОбрачун је по комаду."]
[null,"Пречника 70мм","комада",2,"X",null,"=",{"$f":"D82*F82","v":{"v":0,"d":"0.00"}}]
[null,"Пречника 100мм","комада",1,"X",null,"=",{"$f":"D83*F83","v":{"v":0,"d":"0.00"}}]
[4,"Набавка и постављање обујмица.\nОбрачун је по комаду.","комада",24,"X",null,"=",{"$f":"D84*F84","v":{"v":0,"d":"0.00"}}]
[5,"Набавка и постављање вратанаца од ростфраја.\nОбрачун је по комаду.","комада",2,"X",null,"=",{"$f":"D85*F85","v":{"v":0,"d":"0.00"}}]
[]
[null,"САНИТАРНИ УРЕЂАЈИ - ОБЈЕКАТ"]
[1,"Набавка и уграђивање ВЦ шоље ,,А\" класе, са уградним водокотлићем, пластчном\nдаском и поклопцем, ПВЦ везом и\nхромираним угаоним вентилом.  ВЦ шоља је са одводом у зиду. Обрачун је по комаду комплетно уграђено.\n","комада",6,"X",null,"=",{"$f":"D88*F88","v":{"v":0,"d":"0.00"}}]
[2,"Набавка и уграђивање керамичког умиваоника са сифоном. Висина постављања\n70 цм од готовог пода.           Обрачун је по комаду комплетно уграђеног умиваоника димензије 50/40цм.\n","комада",4,"X",null,"=",{"$f":"D89*F89","v":{"v":0,"d":"0.00"}}]
[3,"Набавка и уграђивање трокадера са одговарајућом батеријом за топлу и хладну воду.","комада",1,"X",null,"=",{"v":0,"d":"0.00"}]
[4,"Набавка и уграђивање писора од керамике са пратећом опремом. Обрачун је по комаду.\n","комада",3,"X",null,"=",{"$f":"D91*F91","v":{"v":0,"d":"0.00"}}]
[5,"Набавка и уграђивање батерије на умиваонику или судоперу за топлу и хладну воду.\nОбрачун је по комаду комплетно\nуграђене батерије.","комада",5,"X",null,"=",{"v":0,"d":"0.00"}]
[6,"Набавка и уграђивање проточног\nелектричног бојлера, потрошња енергије само када се троши топла вода, снаге 6кw са уграђивањем одговарајућих држача, доња монтажа, спојних цеви.                                                   Обрачун је по комаду комплетно монтирано и прикључено на електро и водоводну мрежу.","комада",2,"X",null,"=",{"$f":"D93*F93","v":{"v":0,"d":"0.00"}}]
[7,"Набавка и уграђивање проточног\nелектричног бојлера, потрошња енергије само када се троши топла вода, снаге 6кw\nса уграђивањем одговарајућих држача, висока монтажа изнад трокадера, спојних цеви.               Обрачун је по комаду комплетно\nмонтирано и прикључено на електро и водоводну мрежу.","комада",1,"X",null,"=",{"$f":"D94*F94","v":{"v":0,"d":"0.00"}}]
[8,"Набавка уграђивање етажер полице са огледалом, превртног дозатора за сапун, држача роло папира за брисање руку. \nОбрачун је по комаду уграђеног\nкомплета.","комада",4,"X",null,"=",{"v":0,"d":"0.00"}]
[9,"Набавка и постављање кутије за роло тоалет папаир.\nОбрачун је по комаду.","комада",6,"X",null,"=",{"$f":"D96*F96","v":{"v":0,"d":"0.00"}}]
["УКУПНО 3. ВОДОВОД И КАНАЛИЗАЦИЈА:",{"$nulls":6},{"$f":"SUM(H15:H96)","v":{"v":0,"d":"0.00"}}]
[]
["Напомена: приликом уношења података везаних за понуђену цену, понуђач је дужан да изврши проверу и контролу задатих рачунских операција."]